Cogmind - Beta 15 @@@ ROGUE MODE // 2025.09.20 @ 12:41:06 Player: Beter Result: Destroyed by G-34 Mercenary with Small Laser Performance ------------- Evolutions (0) 0 Regions Visited (4) 800 Robots Destroyed (27) 135 Value Destroyed (460) 460 Prototype IDs (0) 0 Alien Tech Used (0) 0 Bonus (300) 300 TOTAL SCORE: 1695 Bonus ------- Aligned with FarCom 300 Cogmind --------- Core Integrity 0/250 Matter 490/500 Energy 265/265 System Corruption 0% Temperature Cool (6) Movement Rolling (130) Ox2 Location -9/Mines Parts ------- > --- POWER (1) -------- Improved Ion Engine > --- PROPULSION (2) --- Aluminum Leg Compact Wheel > --- UTILITY (2) ------ Large Storage Unit High-capacity Matter Pod > --- WEAPON (2) ------- Beam Rifle Makeshift Spear > --- INVENTORY (15) --- Ion Engine Light Treads Light Treads Aluminum Leg Aluminum Leg Improved Aluminum Leg Small Storage Unit High-capacity Battery (250) High-capacity Matter Pod (200) Advanced Visual Processing Unit Targeting Computer Cloak of Protection Core Shielding Beam Rifle Particle Gun Peak State ------------ > --- POWER ------------ Light Nuclear Core > --- PROPULSION ------- Aluminum Leg Titanium Leg > --- UTILITY ---------- Large Storage Unit High-capacity Matter Pod > --- WEAPON ----------- Beam Rifle Makeshift Spear > --- INVENTORY -------- Light Ion Engine Light Treads Light Treads Aluminum Leg Compact Wheel Small Storage Unit High-capacity Battery High-capacity Matter Pod Advanced Visual Processing Unit Targeting Computer Cloak of Protection Core Shielding Beam Rifle [Rating: 17] Favorites ----------- Power Ion Engine Engine Ion Engine Power Core Light Nuclear Core Propulsion Aluminum Leg Leg Aluminum Leg Wheel Compact Wheel Utility High-capacity Matter Pod Storage High-capacity Matter Pod Weapon Beam Rifle Energy Gun Beam Rifle Ballistic Gun Light Assault Rifle Launcher Grenade Launcher Piercing Weapon Makeshift Spear Build | -11 -10 -10 -10 -9 ------- Run | Yrd Mat Min Exi Min Slots Evolved . | . . . . . Power . | . . . . . Propulsion . | . . . . . Utility . | . . . . . Weapon . | . . . . . Parts Attached 24 | 6 4 2 2 10 Power 3 | 1 . . . 2 Engine 2 | 1 . . . 1 Core 1 | . . . . 1 Reactor . | . . . . . Propulsion 9 | 2 . 1 . 6 Treads . | . . . . . Leg 8 | 2 . 1 . 5 Wheel 1 | . . . . 1 Hover . | . . . . . Flight . | . . . . . Utility 5 | 1 2 . 2 . Device . | . . . . . Storage 5 | 1 2 . 2 . Processor . | . . . . . Hackware . | . . . . . Protection . | . . . . . Artifact . | . . . . . Weapon 7 | 2 2 1 . 2 Energy Gun 3 | . 1 1 . 1 Energy Cannon . | . . . . . Ballistic Gun 2 | 2 . . . . Ballistic Cannon . | . . . . . Launcher 1 | . 1 . . . Special Weapon . | . . . . . Impact Weapon . | . . . . . Slashing Weapon . | . . . . . Piercing Weapon 1 | . . . . 1 Special Melee Weapon . | . . . . . Unidentified Prototypes . | . . . . . Parts Lost 3 | . . 1 . 2 Power 1 | . . . . 1 Propulsion . | . . . . . Utility . | . . . . . Weapon 2 | . . 1 . 1 Highest Loss Streak 2 | . . 1 . 2 To Critical Strikes . | . . . . . Average Backups 10 | 3 7 7 9 14 Power . | . 1 1 1 1 Propulsion 2 | 2 3 2 2 4 Utility 5 | . 1 2 5 7 Weapon 1 | . 1 1 1 1 Tool/Special . | . . . . . Unused Backups 15 | . 4 1 . 10 Power 2 | . . . . 2 Propulsion 5 | . 3 . . 2 Utility 6 | . . 1 . 5 Weapon 2 | . 1 . . 1 Tool/Special . | . . . . . Average Slot Usage (%) 99 | . 95 100 100 98 Engine 12 | . 14 14 14 8 Core 1 | . . . . 5 Leg 27 | . 28 28 28 27 Storage 27 | . 23 28 28 28 Energy Gun 21 | . 4 21 28 16 Launcher 1 | . 12 7 . . Piercing Weapon 3 | . . . . 10 Peak Build Rating 17 | 6 9 12 13 17 Average Rating 12 | 4 7 11 12 15 On Entrance 8 | . 6 9 12 13 Naked Turns . | . . . . . Heaviest Build 36 | 12 20 20 35 36 Greatest Support 30 | 20 20 27 27 30 Greatest Overweight (x) 3 | 3 . . 1 2 Average Overweight (x) . | . . . . . Largest Inventory Capacity 15 | 8 8 8 15 15 Average Capacity 13 | 7 8 8 14 15 Most Carried 15 | 6 8 8 11 15 Average Carried 10 | 3 7 7 9 14 Final Capacity 15 | 8 8 8 15 15 Final Carried 15 | 6 8 7 11 15 Class Distribution -------------------- 100% | Mutant Dominant Class ---------------- Mutant | -10/Materials Mutant | -10/Mines Mutant | -10/Exiles Mutant | -9/Mines Resources | -11 -10 -10 -10 -9 ----------- Run | Yrd Mat Min Exi Min Matter Collected 956 | 226 14 29 597 90 Remotely . | . . . . . Salvage Created 694 | . 102 29 . 563 Parts 56 | . 19 5 . 32 Haulers Intercepted . | . . . . . Recyclers Shooed 1 | . 1 . . . Parts Field Recycled . | . . . . . Retrieved Matter . | . . . . . Parts Self-Destructed . | . . . . . Prevented . | . . . . . Kills | -11 -10 -10 -10 -9 ------- Run | Yrd Mat Min Exi Min Combat Hostiles Destroyed 20 | . 10 3 . 7 Melee 6 | . . . . 6 Guns 3 | . . 2 . 1 AOE 11 | . 10 1 . . Classes Destroyed 8 | . 4 . . 4 Worker 2 | . 1 . . 1 Builder 1 | . . . . 1 Tunneler 1 | . . . . 1 Recycler 2 | . . . . 2 Watcher 1 | . 1 . . . Swarmer 12 | . 9 3 . . Grunt 7 | . 1 . . 6 Duelist 1 | . . . . 1 Best Kill Streak 5 | . 3 3 . 5 Combat Bots Only 3 | . 3 3 . 2 Max Kills in Single Turn 3 | . 3 1 . 1 Gunslinging . | . . . . . Exploded 3 | . 3 1 . . Melee 1 | . . . . 1 Uniques/NPCs Destroyed . | . . . . . Combat | -11 -10 -10 -10 -9 -------- Run | Yrd Mat Min Exi Min Hostile Shots Fired 120 | . 25 18 . 77 Missed 39 | . 9 8 . 22 Hits 81 | . 16 10 . 55 Melee 3 | . . . . 3 Projectile 78 | . 16 10 . 52 Critical Strikes 1 | . . . . 1 Damage Taken 1014 | . 163 97 . 754 Core 258 | . 28 9 . 221 Absorbed by Shields . | . . . . . Core Remaining (%) 100 | 100 . . . . Volleys Fired 29 | . 13 5 . 11 Largest 2 | . 2 2 . 2 Hottest 112 | . 86 112 . 112 Shots Fired 54 | . 24 10 . 20 Gun 41 | . 13 8 . 20 Cannon . | . . . . . Launcher 13 | . 11 2 . . Special . | . . . . . Kinetic 6 | . 6 . . . Thermal 35 | . 7 8 . 20 Explosive 13 | . 11 2 . . Electromagnetic . | . . . . . Robot Hit Streak 10 | . 2 2 . 10 Robot Miss Streak 6 | . 6 3 . 2 Penetration Max . | . . . . . Secondary Targets . | . . . . . Shots Hit Robots 40 | . 5 4 . 31 Core Hits 33 | . 16 3 . 14 Critical Kills . | . . . . . Critical Parts Destroyed . | . . . . . Critical Strikes 4 | . . 1 . 3 Burn 4 | . . 1 . 3 Melee Attacks 20 | . . . . 20 Impact . | . . . . . Slashing . | . . . . . Piercing 20 | . . . . 20 Sneak Attacks 6 | . . . . 6 Combat Hostiles . | . . . . . Follow-up Attacks . | . . . . . Damage Inflicted 1552 | . 580 147 . 825 Guns 253 | . 6 43 . 204 Cannons . | . . . . . Explosions 675 | . 571 104 . . Melee 621 | . . . . 621 Ramming 3 | . 3 . . . Kinetic 6 | . 6 . . . Thermal 247 | . . 43 . 204 Explosive 675 | . 571 104 . . Electromagnetic . | . . . . . Impact . | . . . . . Slashing . | . . . . . Piercing 621 | . . . . 621 Highest Corruption . | . . . . . Average Corruption . | . . . . . Corruption Purged . | . . . . . Corruption Blocked . | . . . . . Overload Shots . | . . . . . Overflow Damage 64 | . 27 . . 37 Projectiles . | . . . . . Explosions 27 | . 27 . . . Melee 37 | . . . . 37 Knockbacks . | . . . . . Impact . | . . . . . Kinetic . | . . . . . Secondary . | . . . . . Self-Inflicted Damage 47 | . 35 12 . . Shots 3 | . 2 1 . . Rammed . | . . . . . Targets Rammed 1 | . 1 . . . Kicked 1 | . 1 . . . Crushed . | . . . . . Highest Temperature 438 | . 48 82 . 438 Average Temperature 122 | . 15 37 . 228 Received Heat Transfer 375 | . 12 . . 363 Siege Activations . | . . . . . Martial Activations . | . . . . . Shielding Activations . | . . . . . Robots Disrupted . | . . . . . Combat Hostiles . | . . . . . Robots Corrupted . | . . . . . Combat Hostiles . | . . . . . Parts Fried . | . . . . . Impact Corruptions . | . . . . . Robots Melted . | . . . . . Combat Hostiles . | . . . . . Parts Melted 1 | . . . . 1 Heat Transferred 925 | . . 185 . 740 Parts Sabotaged . | . . . . . Parts Stolen . | . . . . . Parts Stripped . | . . . . . Power Chain Reactions . | . . . . . Alert | -11 -10 -10 -10 -9 ------- Run | Yrd Mat Min Exi Min Maximum Alert Level . | . . . . . Low Security (%) 100 | 100 100 100 . 100 Level 1 . | . . . . . Level 2 . | . . . . . Level 3 . | . . . . . Level 4 . | . . . . . Level 5 . | . . . . . High Security . | . . . . . Max Security . | . . . . . Peak Influence 198 | . 198 91 . 70 Initial 69 | . . 69 . . Average 27 | . 72 61 . 11 Influence Increases 600 | . 318 82 . 200 Destroy 0b10 Robot/C 400 | . 200 60 . 140 Destroy 0b10 Robot/NC 35 | . 10 . . 25 Destroy Leader 62 | . 32 10 . 20 Destroy Structure 73 | . 61 12 . . Lose Combat Pursuer 30 | . 15 . . 15 Influence Decreases 545 | . 140 209 51 145 Entered New Map 160 | . . 109 51 . Time Decay 375 | . 140 90 . 145 Lost Part 10 | . . 10 . . Squads Dispatched 1 | . . 1 . . Investigation 1 | . . 1 . . Extermination . | . . . . . Reinforcement . | . . . . . Assault . | . . . . . Garrison . | . . . . . Intercept . | . . . . . Searches Triggered . | . . . . . Construction Impeded . | . . . . . Haulers Reinforced . | . . . . . Active Scanning Responses . | . . . . . Cargo Convoy Interrupts . | . . . . . Stealth | -11 -10 -10 -10 -9 --------- Run | Yrd Mat Min Exi Min Distress Signals 3 | . 3 . . . Communications Jammed . | . . . . . Distress Signals . | . . . . . Times Spotted 28 | . 15 3 . 10 Peak Tracking Total 4 | . 4 3 . 2 Tactical Retreats 2 | . 1 . . 1 Traps | -11 -10 -10 -10 -9 ------- Run | Yrd Mat Min Exi Min Traps Triggered . | . . . . . Indirectly . | . . . . . Trap Hack Attempts . | . . . . . Triggered . | . . . . . Disarmed . | . . . . . Reprogrammed . | . . . . . Reused . | . . . . . Traps Extracted . | . . . . . Installed . | . . . . . Triggered . | . . . . . Machines | -11 -10 -10 -10 -9 ---------- Run | Yrd Mat Min Exi Min Machines Disabled . | . . . . . Max in Single Turn . | . . . . . Machines Repaired . | . . . . . Machines Dismantled . | . . . . . Machines Sabotaged . | . . . . . Overloaded Fab Kills . | . . . . . Hacking | -11 -10 -10 -10 -9 --------- Run | Yrd Mat Min Exi Min Machines Accessed 4 | . 2 1 1 . Terminals 1 | . 1 . . . Fabricators . | . . . . . Repair Stations . | . . . . . Recycling Units 1 | . 1 . . . Scanalyzers . | . . . . . Garrison Access . | . . . . . Total Hacks 30 | . 6 1 23 . Successful 29 | . 5 1 23 . Failed 1 | . 1 . . . Catastrophic . | . . . . . Database Lockouts . | . . . . . Manual 1 | . . . 1 . Terminals 3 | . 3 . . . Fabricators . | . . . . . Repair Stations . | . . . . . Recycling Units 3 | . 3 . . . Scanalyzers . | . . . . . Garrison Access . | . . . . . Terminal Hacks 27 | . 3 1 23 . Record 26 | . 3 . 23 . Open Door 1 | . . 1 . . Fabricator Hacks . | . . . . . Repair Station Hacks . | . . . . . Recycling Unit Hacks 2 | . 2 . . . Report Inventory 1 | . 1 . . . Retrieve Components 1 | . 1 . . . Scanalyzer . | . . . . . Garrison Access Hacks . | . . . . . Unauthorized Hacks . | . . . . . Terminals . | . . . . . Fabricators . | . . . . . Repair Stations . | . . . . . Recycling Units . | . . . . . Scanalyzers . | . . . . . Garrison Access . | . . . . . Data Cores Recovered . | . . . . . Used . | . . . . . Hacking Detections 1 | . 1 . . . Full Trace Events 1 | . 1 . . . Feedback Events . | . . . . . Feedback Blocked . | . . . . . Robot Schematics Acquired . | . . . . . Robots Built . | . . . . . Authchips . | . . . . . Time . | . . . . . Total Robot Build Rating . | . . . . . Part Schematics Acquired . | . . . . . Parts Built . | . . . . . Authchips . | . . . . . Time . | . . . . . Total Part Build Rating . | . . . . . Parts Repaired . | . . . . . Time . | . . . . . Parts Recycled . | . . . . . Recycled Matter . | . . . . . Retrieved Matter . | . . . . . Retrieved Components 3 | . 3 . . . Parts Scanalyzed . | . . . . . Part Schematics Acquired . | . . . . . Parts Damaged . | . . . . . Bothacking | -11 -10 -10 -10 -9 ------------ Run | Yrd Mat Min Exi Min Used RIF Installer . | . . . . . Robots Hacked . | . . . . . Non-combat . | . . . . . Combat . | . . . . . Robot Hacks Applied . | . . . . . Relay Couplers Released . | . . . . . Fabnet Peak Effective % . | . . . . . Robots Rewired . | . . . . . Allies Hacked . | . . . . . Hacks Repelled . | . . . . . Allies | -11 -10 -10 -10 -9 -------- Run | Yrd Mat Min Exi Min Total Allies . | . . . . . Largest Group . | . . . . . Highest-Rated Group . | . . . . . Highest-Rated Ally . | . . . . . Total Orders . | . . . . . Ally Attacks . | . . . . . Total Damage . | . . . . . Kills . | . . . . . Allies Corrupted . | . . . . . Allies Melted . | . . . . . Intel | -11 -10 -10 -10 -9 ------- Run | Yrd Mat Min Exi Min Active Infowar (turns) . | . . . . . Robot Analysis Total . | . . . . . Derelict Logs Recovered 3 | . . 1 . 2 Drone Launches . | . . . . . Drone Recoveries . | . . . . . Exploration | -11 -10 -10 -10 -9 ------------- Run | Yrd Mat Min Exi Min Turns Passed 3740 | 65 317 194 1928 1236 Spaces Moved 1761 | 37 217 141 1018 348 Core 13 | 13 . . . . Treads . | . . . . . Legs 1740 | 24 217 141 1018 340 Wheels 8 | . . . . 8 Hover . | . . . . . Flight . | . . . . . Fastest Speed 50 | 50 120 120 125 125 Average Speed 174 | 136 120 123 188 190 Slowest Speed 200 | 200 120 125 195 195 Overloaded Moves . | . . . . . Propulsion Burnouts . | . . . . . Robots Hopped . | . . . . . Potential Cave-ins . | . . . . . Cave-ins Triggered . | . . . . . Exploration Rate (%) 46 | 4 45 31 93 60 Regions Visited 4 Branch Regions 3 Pre-discovered Areas 2 | . . . 1 1 Known Exits Taken . | . . . . . Unknown Exits Taken 4 | 1 1 1 1 . Scrap Searched 1 | . . . . 1 Spaces Dug 3 | . 3 . . . Terrain Destroyed 74 | . 62 12 . . Melee . | . . . . . Projectile . | . . . . . AOE 74 | . 62 12 . . Terrain Rammed . | . . . . . Walls Destroyed . | . . . . . Machines Disabled . | . . . . . Actions | -11 -10 -10 -10 -9 --------- Run | Yrd Mat Min Exi Min Total 2356 | 48 251 151 1025 881 Wait 495 | . 6 1 2 486 Move 1757 | 36 216 140 1017 348 Hop . | . . . . . Pick Up 18 | 6 6 1 2 3 Fast Attach 10 | 6 1 . . 3 Attach 1 | . . 1 . . Detach . | . . . . . Swap 13 | . 3 1 2 7 Drop 10 | . 5 2 . 3 Fire 29 | . 13 5 . 11 Melee 20 | . . . . 20 Ram . | . . . . . Kick 1 | . 1 . . . Crush . | . . . . . Escape Stasis . | . . . . . Rewire 2 | . . . 2 . Trap . | . . . . . Miscellaneous . | . . . . . Route ------- -11/Scrapyard -10/Materials -10/Mines -10/Exiles (discovered 2 exits: [*Min x2]) -9/Mines History --------- Turn | Location | Event 30 | -11/Scrapyard | Discovered new exit (range 15) 66 | -11/Scrapyard | Entered Materials 177 | -10/Materials | Discovered new exit (range 8) 306 | -10/Materials | Build established: Mutant 383 | -10/Materials | Entered Mines 398 | -10/Mines | Learned Materials terminal intel 418 | -10/Mines | Met a Derelict shopkeep closing up shop 570 | -10/Mines | Deemed a non-threat by the Exiles lab entrance 572 | -10/Mines | Discovered new exit (range 5) 577 | -10/Mines | Entered Exiles 596 | -10/Exiles | Discovered new exit (range 14) 610 | -10/Exiles | Met 8R-AWN 630 | -10/Exiles | Met EX-HEX 758 | -10/Exiles | Met EX-DEC 824 | -10/Exiles | Visited The Gauntlet 1094 | -10/Exiles | Learned location of Zion (-7) 1282 | -10/Exiles | Discovered new exit (range 12) 1443 | -10/Exiles | Met EX-BIN 1473 | -10/Exiles | Aligned with FarCom system 1475 | -10/Exiles | Given EX-Vault access code 1562 | -10/Exiles | Opened EX-Vault 1634 | -10/Exiles | Found Prototype Device 1704 | -10/Exiles | Warned to stay clear of 0b10 Research branches 2505 | -10/Exiles | Left Exiles lab with Cloak of Protection 2505 | -10/Exiles | Entered Mines 2698 | -9/Mines | Learned location of Storage (-8) 2721 | -9/Mines | Learned Materials trap positions 2784 | -9/Mines | A weapon hastily lodged in a ceiling crevice suddenly fell to the ground 3188 | -9/Mines | Excavation squad dispatched 3188 | -9/Mines | A large section of the Mines collapsed 3438 | -9/Mines | Excavation squad dispatched 3608 | -9/Mines | Core integrity fell below 50% 3688 | -9/Mines | Excavation squad dispatched 3719 | -9/Mines | Core integrity fell below 20% 3741 | -9/Mines | Destroyed by G-34 Mercenary with Small Laser Last Messages --------------- 03571_ R-06 Scavenger destroyed. 03595_ Dropped Aluminum Leg. 03607_ G-34 Mercenary destroyed. 03625_ Acquired 20 matter. 03644_ U-05 Engineer lays Concrete. 03660_ G-34 Mercenary destroyed. 03666_ K-01 Serf collects debris. 03666_ Sneak attack on K-01 Serf. 03666_ Destroyed Wheel. 03668_ Sneak attack on K-01 Serf. 03668_ Destroyed Wheel. 03668_ K-01 Serf destroyed. 03672_ Dropped Lgt. Ion Engine. 03672_ Acquired Ion Engine. 03678_ R-06 Scavenger collects Lgt. Ion Engine. 03681_ R-06 Scavenger collects Aluminum Leg. 03688_ ALERT: Derelict activity in mines confirmed. Dispatching additional escorted excavation squad. 03722_ K-01 Serf collects debris. Map ----- +----------------------------------------------------+ | ???????????????????????????????# # | | ??????????????????????????#????# ## | | ??????????????????????????# ### ## | | ??????????????????????????# %" # | | ??????????????????????????###### # | | ???????????????????????????????## ## | | ????????????????????????????????## ####? | | ?????????????????????????????????## ##???? | | ??????????????????????????????????## #????? | | ???????????????????????????????????# #????? | | ???????????????????????????????????# %#??### | | ?????????????????????####??????????#% #### | | ????????????????????## #??????????# ## | | ????????????????????# ???####??## * | | ???????????????????## ??## #### | | ???????????????????# #??# | | ???????????????????# #### ### | | ???????????????????# ## ##?? | | ?????? ???????????# g ##?? | | ?????? ??????????# ### #?? | | ???????? ????????## ##?# g #?? | | ?????????# g ??##### kg #??# ##?? | | ?????????# t## k #??## ####??? | | ?????????# ### #??### g#?????? | | ?????????# ## ##?## #???# #?????? | | ?????????????##### @ ##???# #??# #?????? | | ?????????????????#####????# #?# #?????? | | ??????????????????????????# #?# #?????? | | ??????????????????????????# #?# #?????? | | ??????????????????????????# ##?# #?????? | | ???????????????????????????# ##??# #?????? | | ????????????????????????????###???# #?????? | | ??????????????????????????????????# #?????? | | ??????????????????????????????????# #?????? | | ??????????????????????????????????# ?????? | | ??????????????????????????????????# ?????? | | ??????????????????????????????????####?????? | | ???????????????????????????????????????????? | | ???????????????????????????????????????????? | | ???????????????????????????????????????????? | | ???????????????????????????????????????????? | | | | | | | | | | | | | | | | | | | +----------------------------------------------------+ Best States ------------- Heat Dissipation 25 Energy Generation 14 Energy Capacity 265 Matter Stores 500 Matter Capacity 500 Sight Range 16 Terrain Scan Density 10 Evasion (%) 55 Item Schematics ----------------- None Robot Schematics ------------------ None Fabricated ------------ Nothing Repaired ---------- Nothing Alien Tech Used ----------------- None Achievements -------------- None Challenges ------------ None Game ------ Seed TransportStealthCasing Manual? 0 Play Time 00:25:33 Cumulative 13.5 hours Start 2025.09.20 @ 12:07:46 End 2025.09.20 @ 12:41:06 Sessions 1 Manual Loads 0 Difficulty Rogue Special Mode None Game No. 12 Rogue 12 Adventurer 0 Explorer 0 Win Type - Total 0 Types 0/0/0/0/0/0/0/0/0/0 Lore% 7 Gallery% 16 Achievement% 12 Wizard Run 0 Options --------- Layout 1 ASCII 0 Keyboard 1 Movement Numpad Keybinds 0 Fullscreen 1 Font 24/Smallcaps Map View 50x35 Zoom Use 0% Tactical HUD 1 Map Filters NONE Filters NONE Steam 1 RUN: a35ac89c-758c-47a3-a0a9-75f7b404f9d1